[Event "3rd VIZAG GM-Open 2022"]
[Site "Visakapatnam"]
[Date "2022.06.13"]
[Round "4.6"]
[White "Saravana, Krishnan P."]
[Black "Paichadze, Luka"]
[Result "1/2-1/2"]
[ECO "B18"]
[WhiteElo "2269"]
[BlackElo "2567"]
[Annotator "TA"]
[PlyCount "141"]
[EventDate "2022.06.13"]
[EventType "swiss"]
[EventCountry "IND"]
[SourceTitle "playchess.com"]
[Source "ChessBase"]
[SourceQuality "1"]
[TimeControl "5400+30"]

{[%evp 9,141,0,0,0,0,0,0,0,4,0,0,0,-10,-10,-6,-24,-30,-18,-16,-33,0,0,16,13,45,43,50,64,50,43,99,104,98,116,104,31,36,28,33,37,35,37,32,9,0,14,22,23,18,0,49,63,77,56,66,-8,-5,-6,-12,-13,0,0,34,20,47,47,58,17,20,17,8,8,8,11,26,0,0,0,0,0,0,0,0,0,0,0,0,0,0,-1,8,8,8,8,8,8,8,8,8,8,8,8,8,8,8,8,8,8,8,8,8,8,8,8,8,8,8,8,8,8,8,8,8,8,8,8,8,8,8,8,8,8,8,8]} 1. e4 {[%emt 0:00:05]} c6 {[%emt 0:00:05]} 2. d4 {[%emt 0:00:07]} d5 {[%emt 0:00:15]} 3. Nc3 {[%emt 0:00:08]} dxe4 {[%emt 0:00:06]} 4. Nxe4 {[%emt 0:00:09]} Bf5 {[%emt 0:00:05]} 5. Nc5 {[%emt 0:03:55]} e5 {[%emt 0:01:24]} 6. Nxb7 {[%emt 0:00:18] B18: Classical Caro-Kann: 4...Bf5 sidelines.} Qb6 {[%emt 0:00:11]} 7. Nc5 {[%emt 0:00:06]} Bxc5 {[%emt 0:00:07]} 8. dxc5 {[%emt 0:00:04]} Qxc5 {[%emt 0:00:05]} 9. c3 {[%emt 0:00:12]} Nf6 {[%emt 0:00:36]} 10. Be3 {[%emt 0:00:59]} Qe7 {[%emt 0:00:18]} 11. Nf3 {[%emt 0:01:53]} Nd5 {[%emt 0:01:57]} 12. Qc1 {[%emt 0:05:26]} Nd7 {[%emt 0:02:10]} 13. Be2 {[%emt 0:01:16]} O-O {[%emt 0:01:24]} 14. O-O {[%emt 0:00:38] [#]} N7b6 $146 {[%emt 0:03:19]} ({Predecessor:} 14... Nxe3 15. Qxe3 Rfe8 16. Rad1 Nb6 17. b3 Nd5 18. Qc1 Nf4 19. Bc4 Be6 20. Bxe6 Ne2+ {0-1 (20) Sumaneev,D (2450)-Maly,A (2370) Chess.com INT 2021}) 15. Re1 {[%emt 0:02:50]} f6 {[%emt 0:05:37]} 16. Bd2 {[%emt 0:04:58][%cal Be3d2,Bd2c3,Bc3e5][%mdl 32]} a5 {[%emt 0:01:43]} 17. Nh4 {[%emt 0:14:50]} Be6 {[%emt 0:02:02]} 18. c4 {[%emt 0:00:22]} Nc7 {[%emt 0:01:33]} 19. Qc2 {[%emt 0:00:26]} f5 {[%emt 0:03:39]} (19... Rfd8 $14) 20. Nf3 $16 {[%emt 0:01:05]} Nd7 {[%emt 0:03:27]} 21. Bc3 {[%emt 0:04:16]} e4 {[%emt 0:00:51]} 22. Ne5 {[%emt 0:00:20]} ({Better is} 22. Nd4 $1 $16 {[%cal Rd4c6]}) 22... Nxe5 $14 {[%emt 0:01:03]} 23. Bxe5 {[%emt 0:00:09]} Bf7 {[%emt 0:00:29]} 24. Qc3 {[%emt 0:03:00]} Ne6 {[%emt 0:00:06]} 25. c5 {[%emt 0:04:02]} Rfe8 {[%emt 0:00:36]} 26. Red1 {[%emt 0:04:52]} f4 {[%emt 0:06:03]} 27. Bd6 {[%emt 0:06:06] This bishop pair is nice.} Qg5 {[%emt 0:01:48]} 28. f3 {[%emt 0:00:28]} Bh5 {[%emt 0:01:43]} 29. Kh1 {[%emt 0:01:49]} Qg6 {[%emt 0:05:08]} (29... Qh4 $11) 30. Rg1 {[%emt 0:06:34]} Ng5 {[%emt 0:22:50]} 31. Bxf4 {[%emt 0:17:51] White is more active.} exf3 {[%emt 0:00:30] [#]} 32. Bc4+ {[%emt 0:07:55]} ({White should play} 32. gxf3 $1 $14 h6 (32... Rxe2 33. Rxg5) 33. Bc4+ Kh7 34. Rg3) 32... Kh8 $11 {[%emt 0:03:21] Strongly threatening ...Ne4.} 33. Bxg5 {[%emt 0:00:52]} Qxg5 {[%emt 0:00:48]} ({Don't do} 33... f2 34. Rgf1 $1 Qxg5 35. Rxf2 $14) 34. gxf3 {[%emt 0:00:23]} Qh6 {[%emt 0:01:09]} 35. Rae1 {[%emt 0:01:25] Inhibits Re3.} Rf8 {[%emt 0:01:08]} 36. Rg3 {[%emt 0:00:39] White wants to play Rh3.} Rae8 {[%emt 0:04:22]} 37. Rxe8 {[%emt 0:01:17]} ({Much weaker is} 37. Qxa5 Qf4 38. Bf1 Bxf3+ 39. Bg2 {[#]} Qa4 $1 $11) 37... Rxe8 {[%emt 0:00:02]} 38. Bf1 {[%emt 0:01:04]} Bf7 {[%emt 0:06:13]} 39. Qxa5 {[%emt 0:02:12]} Qc1 {[%emt 0:01:53] [#]} 40. Qc3 $1 {[%emt 0:00:55]} Qxc3 {[%emt 0:01:22]} (40... Qxf1+ $2 41. Rg1 Qxg1+ 42. Kxg1 $18) 41. bxc3 {[%emt 0:00:05][%cal Bb2c3,Bc3c4][%mdl 32]} Bxa2 {[%emt 0:00:14][%mdl 4096] Endgame KRB-KRB} 42. f4 {[%emt 0:00:06]} Re4 {[%emt 0:04:14] The position is equal.} 43. Rd3 {[%emt 0:01:43] Black must now prevent Rd8+.} Bd5 {[%emt 0:04:05]} 44. c4 {[%emt 0:00:11]} Bg8 {[%emt 0:04:14]} 45. Rd8 {[%emt 0:02:03]} g6 {[%emt 0:01:44]} 46. Rc8 {[%emt 0:00:58]} Rxf4 {[%emt 0:00:12]} 47. Kg1 {[%emt 0:00:10]} Kg7 {[%emt 0:00:41]} 48. Rxc6 {[%emt 0:01:11]} Bxc4 {[%emt 0:00:01]} 49. Rc7+ {[%emt 0:00:31]} Rf7 {[%emt 0:03:17]} 50. Rxf7+ {[%emt 0:00:20]} Bxf7 {[%emt 0:00:01] KB-KB} 51. c6 {[%emt 0:00:42]} Be6 {[%emt 0:00:10]} 52. Ba6 {[%emt 0:00:48]} Kf6 {[%emt 0:00:05]} 53. c7 {[%emt 0:00:11]} Ke7 {[%emt 0:00:08]} 54. Kf2 {[%emt 0:00:10]} Kd6 {[%emt 0:00:07]} 55. c8=Q {[%emt 0:00:06]} Bxc8 {[%emt 0:00:01]} 56. Bxc8 {[%emt 0:00:07] KB-KPP} Ke5 {[%emt 0:00:18]} 57. Kg3 {[%emt 0:00:08]} Kf6 {[%emt 0:00:14]} 58. Kf4 {[%emt 0:00:35]} h6 {[%emt 0:00:37][%cal Bh7h6,Bh6h5,Bh5h4][%mdl 32]} 59. Ba6 {[%emt 0:00:07]} Kg7 {[%emt 0:01:08]} 60. Ke5 {[%emt 0:00:06]} g5 {[%emt 0:00:26]} 61. Kf5 {[%emt 0:00:19] Threatens to win with Kg4.} h5 $1 {[%emt 0:00:53]} 62. Be2 {[%emt 0:01:42]} Kh6 $1 {[%emt 0:00:44]} 63. Bd1 {[%emt 0:00:33]} g4 $1 {[%emt 0:00:26]} 64. Be2 {[%emt 0:00:26]} h4 $1 {[%emt 0:00:11]} 65. Bf1 {[%emt 0:01:22]} g3 {[%emt 0:00:06]} 66. h3 {[%emt 0:00:04]} g2 {[%emt 0:00:04]} 67. Bxg2 {[%emt 0:00:04]} Kg7 {[%emt 0:00:04]} 68. Kg5 {[%emt 0:00:27]} Kh8 {[%emt 0:00:06]} 69. Kh6 $1 {[%emt 0:00:15]} Kg8 {[%emt 0:00:05]} 70. Be4 {[%emt 0:00:53]} Kh8 {[%emt 0:00:06]} 71. Bf5 {[%emt 0:00:33] Weighted Error Value: White=0.07 (flawless) /Black=0.06 (flawless)} 1/2-1/2

[Event "3rd VIZAG GM-Open 2022"]
[Site "Visakapatnam"]
[Date "2022.06.13"]
[Round "4.7"]
[White "Harsha Bharathakoti"]
[Black "Kaustuv, Kundu"]
[Result "1/2-1/2"]
[ECO "D37"]
[WhiteElo "2547"]
[BlackElo "2327"]
[Annotator "TA"]
[PlyCount "95"]
[EventDate "2022.06.13"]
[EventType "swiss"]
[EventCountry "IND"]
[SourceTitle "playchess.com"]
[Source "ChessBase"]
[SourceQuality "1"]
[TimeControl "5400+30"]

{[%evp 9,95,22,23,24,22,28,29,22,38,27,27,25,31,30,26,25,33,12,20,19,28,19,34,19,16,8,25,18,24,21,12,0,0,0,0,0,12,0,0,0,0,0,0,0,0,-16,-15,-20,-16,-10,-8,-8,-8,-12,0,0,0,0,0,0,0,0,0,0,0,0,0,0,0,0,0,0,0,0,0,0,0,0,0,0,0,0,0,0,0,0,0,-22]} 1. d4 {[%emt 1:31:00]} d5 {[%emt 0:02:43]} 2. c4 {[%emt 0:00:00]} e6 {[%emt 0:00:05]} 3. Nc3 {[%emt 0:00:00]} a6 {[%emt 0:00:06]} 4. cxd5 {[%emt 0:00:00]} exd5 {[%emt 0:00:05]} 5. Nf3 {[%emt 0:00:00]} Nf6 {[%emt 0:00:33]} 6. Bg5 {[%emt 0:00:00] D37: Queen's Gambit Declined: 5 Bf4.} Be6 {[%emt 0:00:06]} 7. e3 {[%emt 0:00:00]} Nbd7 {[%emt 0:00:04]} 8. Bd3 {[%emt 0:00:00] White has an edge.} Bd6 {[%emt 0:01:04]} 9. O-O {[%emt 0:00:00]} c6 $1 {[%emt 0:00:22] 9...c6 is better than 9...0-0.} 10. Bf4 {[%emt 0:00:00]} Qc7 {[%emt 0:00:06]} 11. Bxd6 {[%emt 0:00:00]} Qxd6 {[%emt 0:00:04]} 12. h3 {[%emt 0:00:00]} O-O {[%emt 0:00:09]} 13. Qc2 {[%emt 0:00:00]} g6 {[%emt 0:00:21]} 14. Rfe1 {[%emt 0:00:00]} Qe7 {[%emt 0:09:54]} 15. Rac1 {[%emt 0:00:00]} Rfe8 {[%emt 0:06:52] [#]} 16. a3 $146 {[%emt 0:00:00][%cal Ba2a3,Ba3a4,Ba4b5][%mdl 32]} ({Predecessor:} 16. Na4 Rad8 17. b4 Ne4 18. Nc5 Nd6 19. Nd2 Nf6 20. a4 Bf5 21. Bxf5 Nxf5 22. a5 {1-0 (55) Obregon,C (2525)-Sjugirov,S (2663) Chess.com INT 2021}) 16... Nb6 {[%emt 0:00:44]} 17. b4 {[%emt 0:00:00]} Nc8 {[%emt 0:01:26]} 18. Ne5 {[%emt 0:00:00]} Nd6 {[%emt 0:01:58]} 19. a4 {[%emt 0:00:00]} Rac8 {[%emt 0:05:44] The position is equal.} 20. b5 {[%emt 0:00:00]} axb5 {[%emt 0:01:37]} 21. axb5 {[%emt 0:00:00]} c5 {[%emt 0:00:10]} 22. dxc5 {[%emt 0:00:00]} Rxc5 {[%emt 0:00:08][%cal Oe6h3] White must now prevent ...Bxh3!} 23. Nf3 $1 {[%emt 0:00:00]} Rec8 {[%emt 0:15:43]} 24. Qb2 {[%emt 0:00:00]} Nfe4 {[%emt 0:08:38][%cal Re4c3]} 25. Ne2 {[%emt 0:00:00]} Nc4 {[%emt 0:04:55]} 26. Qb1 {[%emt 0:00:00]} Bd7 {[%emt 0:19:40]} 27. Ned4 {[%emt 0:01:53]} b6 {[%emt 0:00:21]} 28. Qb4 {[%emt 0:07:44]} Qf6 {[%emt 0:03:14] White should prevent ...Ne5.} 29. Ra1 {[%emt 0:01:24]} h5 {[%emt 0:05:00]} 30. Ra7 {[%emt 0:00:46]} Be8 {[%emt 0:00:15]} 31. Rd1 {[%emt 0:01:37]} g5 {[%emt 0:03:54] aiming for ...g4.} (31... Ned6 {is interesting.} 32. Rda1 Qd8 33. Qb1 Nxb5 34. R7a6 Nxd4 35. Nxd4 Qg5) 32. Bxe4 {[%emt 0:00:57]} dxe4 {[%emt 0:00:06]} 33. Nd2 {[%emt 0:00:57]} Nxd2 {[%emt 0:01:09]} (33... Nd6 {keeps more tension.} 34. Qb1 Qe5 35. N2b3 Rc4) 34. Qxd2 {[%emt 0:00:03]} Bxb5 {[%emt 0:00:56]} 35. Nxb5 {[%emt 0:01:03]} Rxb5 {[%emt 0:00:06]} 36. Qd7 {[%emt 0:00:19][%csl LRb5,LRc8]} Rbc5 {[%emt 0:02:16]} 37. Qe7 {[%emt 0:00:40]} Qxe7 {[%emt 0:01:04]} 38. Rxe7 {[%emt 0:01:07]} Rc1 {[%emt 0:00:24]} 39. Rxc1 {[%emt 0:00:00]} Rxc1+ $11 {[%emt 0:00:05][%mdl 4096] Endgame KR-KR} 40. Kh2 {[%emt 0:00:00]} Rf1 {[%emt 0:06:01]} 41. Rxe4 {[%emt 0:00:00]} Rxf2 {[%emt 0:00:07]} 42. Re5 {[%emt 0:00:00] Inhibits Rf5.} f6 {[%emt 0:00:18]} 43. Rb5 {[%emt 0:00:00]} Re2 {[%emt 0:00:45]} 44. Rxb6 {[%emt 0:00:00]} Kf7 {[%emt 0:00:04]} 45. Rb3 {[%emt 0:00:00]} h4 {[%emt 0:00:15]} 46. Kg1 {[%emt 0:00:00]} Ke6 {[%emt 0:00:25]} 47. Kf1 {[%emt 0:00:00]} Ra2 {[%emt 0:00:07]} 48. Rb5 {[%emt 0:00:00] An even fight not without its subleties.  Weighted Error Value: White=0.03 (flawless) /Black=0.02 (flawless)} 1/2-1/2

[Event "3rd VIZAG GM-Open 2022"]
[Site "Visakapatnam"]
[Date "2022.06.13"]
[Round "4.8"]
[White "Fedorov, Alexei"]
[Black "Abdyjapar, Asyl"]
[Result "0-1"]
[ECO "B12"]
[WhiteElo "2529"]
[BlackElo "2346"]
[Annotator "TA"]
[PlyCount "108"]
[EventDate "2022.06.13"]
[EventType "swiss"]
[EventCountry "IND"]
[SourceTitle "playchess.com"]
[Source "ChessBase"]
[SourceQuality "1"]
[TimeControl "5400+30"]

{[%evp 10,108,14,18,26,26,34,26,26,32,21,20,20,16,31,18,26,26,36,16,33,0,1,0,0,-10,9,0,0,-5,0,-16,-14,-23,-13,-9,0,-2,0,-36,0,0,0,-90,-86,-95,-102,-98,-83,-79,-85,-77,-95,-92,-85,-128,-98,-93,-70,-75,-78,-116,-109,-120,0,-23,-29,-36,-25,-40,-29,-27,-33,-145,-122,-216,-210,-276,-268,-495,-495,-460,-434,-620,-614,-775,-775,-775,-775,-775,-775,-719,-719,-1006,-950,-838,-814,-5949,-5942,-5577,-5089]} 1. e4 {[%emt 0:00:04]} c6 {[%emt 0:00:03]} 2. d4 {[%emt 0:00:10]} d5 {[%emt 0:00:12]} 3. e5 {[%emt 0:00:06]} Bf5 {[%emt 0:00:09]} 4. Nd2 {[%emt 0:00:12]} e6 {[%emt 0:00:06]} 5. Nb3 {[%emt 0:00:05]} Nd7 {[%emt 0:00:07]} 6. Nf3 {[%emt 0:00:28]} Ne7 {[%emt 0:00:08][%cal Bg8e7,Be7c8,Bc8a7,Ba7b5,Bb5c7,Bc7d5][%mdl 32] B12: Caro-Kann: Advance Variation.} 7. Be2 {[%emt 0:00:08]} Nc8 {[%emt 0:00:05]} 8. O-O {[%emt 0:01:25]} Be7 {[%emt 0:00:03] White has an edge.} 9. a4 {[%emt 0:00:27]} O-O {[%emt 0:00:10]} 10. a5 {[%emt 0:00:04]} a6 {[%emt 0:00:06]} 11. c4 {[%emt 0:00:26]} dxc4 {[%emt 0:00:27]} 12. Bxc4 {[%emt 0:00:07]} Na7 {[%emt 0:00:16]} 13. Qe2 {[%emt 0:06:42]} Nb5 {[%emt 0:00:51]} 14. Rd1 {[%emt 0:03:10]} Nc7 {[%emt 0:02:32] [#]} 15. Bd3 $146 {[%emt 0:07:14]} ({Predecessor:} 15. Nfd2 b5 16. axb6 Nxb6 17. Bxa6 Nxa6 18. Rxa6 Qc7 19. Nc5 Rxa6 20. Nxa6 Qa7 21. Nc5 {0-1 (32) Petkidis,A (2375)-Artemiev,V (2709) Skopje 2018}) 15... Bxd3 {[%emt 0:04:40]} 16. Rxd3 {[%emt 0:00:19]} Nd5 {[%emt 0:00:14]} 17. Qe4 {[%emt 0:02:59]} Re8 {[%emt 0:03:52]} 18. Qg4 {[%emt 0:06:09]} f5 {[%emt 0:00:50]} 19. exf6 {[%emt 0:00:33]} Bxf6 {[%emt 0:00:06]} 20. Bd2 {[%emt 0:12:34]} e5 {[%emt 0:04:16]} 21. dxe5 {[%emt 0:00:50]} Bxe5 {[%emt 0:02:36]} 22. Bc3 {[%emt 0:04:06]} Bf6 {[%emt 0:08:14]} 23. g3 {[%emt 0:04:03]} Qe7 {[%emt 0:02:27]} 24. Rad1 {[%emt 0:08:39]} Rad8 {[%emt 0:02:59]} 25. Qc4 {[%emt 0:10:28]} Qf7 {[%emt 0:07:11]} 26. Nbd2 {[%emt 0:02:34]} (26. Bxf6 $11 {remains equal.} Qxf6 27. Nbd2) 26... Nxc3 $17 {[%emt 0:05:37]} 27. bxc3 {[%emt 0:03:03]} Qxc4 {[%emt 0:00:49]} 28. Nxc4 {[%emt 0:00:06]} Nc5 {[%emt 0:00:04]} 29. Rxd8 {[%emt 0:02:14]} Rxd8 {[%emt 0:01:10]} 30. Rxd8+ {[%emt 0:00:40]} Bxd8 {[%emt 0:00:04][%mdl 4096] Endgame KBN-KNN} 31. Nd4 {[%emt 0:02:05] Inhibits Nb3.} Ne4 {[%emt 0:04:21]} 32. Nf5 {[%emt 0:02:07]} g6 {[%emt 0:04:35]} (32... Nxc3 $6 33. Nfd6 $11) 33. f3 {[%emt 0:03:09]} Nc5 {[%emt 0:03:02]} ({Don't play} 33... Nxc3 34. Nfd6 $11) 34. Nd4 {[%emt 0:02:23]} Na4 {[%emt 0:01:42]} 35. Ne2 {[%emt 0:01:36]} Bf6 {[%emt 0:02:41]} 36. Nd6 {[%emt 0:00:53]} Nxc3 {[%emt 0:00:09]} ({Black should try} 36... Kf8 $17 {Strongly threatening ...Ke7.} 37. Nxb7 Ke7) 37. Kf1 {[%emt 0:01:38]} Na4 {[%emt 0:04:21]} 38. Nxb7 {[%emt 0:00:12]} Kf7 {[%emt 0:00:20]} 39. Nd6+ {[%emt 0:08:10]} Ke6 {[%emt 0:00:16]} 40. Ne4 {[%emt 0:01:09]} Bd8 {[%emt 0:00:17]} 41. h4 {[%emt 0:00:30]} (41. Nf4+ $15 Ke7 42. Nd3) 41... Ke5 {[%emt 0:01:26]} ({Worse is} 41... Bxa5 42. Ng5+ Ke7 43. Nxh7 $11) 42. Nf4 {[%emt 0:00:55]} (42. Kf2 $17 {might work better.}) 42... Bxa5 $19 {[%emt 0:01:30]} 43. Ng5 {[%emt 0:01:50]} Bd2 {[%emt 0:00:49]} 44. Nfh3 $2 {[%emt 0:01:45]} (44. Nxh7 Bxf4 45. gxf4+ Kf5 46. Ng5) 44... Nc3 {[%emt 0:02:47] Black is clearly winning.} 45. f4+ {[%emt 0:01:08]} Kd5 {[%emt 0:00:26]} 46. g4 {[%emt 0:01:36]} (46. Nf3 $142 Be3 47. Nhg5) 46... a5 {[%emt 0:00:29][%cal Ba6a5,Ba5a4,Ba4a3,Ba3a2][%mdl 32] [#] Threatens to win with ...a4.} 47. f5 {[%emt 0:00:08]} gxf5 {[%emt 0:00:12]} 48. gxf5 {[%emt 0:00:05]} a4 {[%emt 0:02:10]} 49. f6 {[%emt 0:00:05]} Kd6 {[%emt 0:00:14] White must now prevent ...a3.} 50. Nf3 {[%emt 0:01:12]} Be3 {[%emt 0:00:40] aiming for ...a3.} 51. Ne1 {[%emt 0:00:31]} a3 {[%emt 0:00:35]} 52. Nc2 {[%emt 0:00:03] [#]} a2 $1 {[%emt 0:00:36]} 53. Ng5 {[%emt 0:00:35]} (53. Nf2 Bd4) 53... Bxg5 {[%emt 0:00:33]} 54. hxg5 {[%emt 0:00:08]} Ne4 {[%emt 0:00:07] Weighted Error Value: White=0.50/Black=0.06 (flawless)} 0-1

[Event "3rd VIZAG GM-Open 2022"]
[Site "Visakapatnam"]
[Date "2022.06.13"]
[Round "4.9"]
[White "Nikitenko, Mihail"]
[Black "Barath Kalyan M"]
[Result "1-0"]
[ECO "A36"]
[WhiteElo "2479"]
[BlackElo "2232"]
[Annotator "TA"]
[PlyCount "137"]
[EventDate "2022.06.13"]
[EventType "swiss"]
[EventCountry "IND"]
[SourceTitle "playchess.com"]
[Source "ChessBase"]
[SourceQuality "1"]
[TimeControl "5400+30"]

{[%evp 21,136,57,62,59,61,47,64,73,55,45,39,58,49,51,50,46,50,36,44,43,56,40,71,83,82,76,80,79,90,81,168,168,154,97,94,93,141,150,126,122,125,-136,156,110,83,96,116,101,346,263,238,-270,-264,-359,-90,-85,-70,-461,22,25,23,30,30,22,21,35,35,27,18,8,8,8,8,8,8,0,0,0,0,0,0,0,0,0,0,0,0,0,8,8,179,61,12795,12795,2720,591,29976,29977,29977,29978,29980,29981,29982,29983,29989,29990,29992,29993,29993,29994,29995,29996,29996,29997,29998,29999,29999]} 1. c4 {[%emt 0:00:06] ChessBase II} Nf6 {[%emt 0:00:40]} 2. g3 {[%emt 0:00:24]} g6 {[%emt 0:00:59]} 3. Bg2 {[%emt 0:00:08]} Bg7 {[%emt 0:00:03]} 4. e4 {[%emt 0:00:48]} d6 {[%emt 0:00:09]} 5. Ne2 {[%emt 0:00:08]} O-O {[%emt 0:00:16]} 6. O-O {[%emt 0:00:10]} c5 {[%emt 0:03:11]} 7. Nbc3 {[%emt 0:00:07]} Nc6 {[%emt 0:00:41]} 8. d3 {[%emt 0:00:07]} Ne8 {[%emt 0:01:30][%cal Bf6e8,Be8c7,Bc7e6,Be6c5][%mdl 32]} 9. Be3 {[%emt 0:00:05]} Nc7 {[%emt 0:07:43]} 10. d4 {[%emt 0:00:21]} cxd4 {[%emt 0:00:05]} 11. Nxd4 {[%emt 0:00:05]} Ne6 {[%emt 0:01:24][%cal Re6d4]} 12. Nde2 {[%emt 0:02:10] A36: Symmetrical English vs ...g6: 4 Bg2 Bg7.} Nc5 {[%emt 0:01:29]} 13. h3 {[%emt 0:02:18]} Be6 {[%emt 0:08:17]} 14. b3 {[%emt 0:00:28] [#] White is slightly better.} Qa5 $146 {[%emt 0:07:26]} ({Predecessor:} 14... a5 15. f4 a4 16. f5 Bd7 17. f6 Bh8 18. fxe7 Qxe7 19. Nd5 Qd8 20. b4 Ne6 {½-½ (38) Nisipeanu,L (2673)-Maze,S (2559) Aix les Bains 2011 CBM 142 Extra [ChessBase II]}) 15. Bd2 {[%emt 0:02:22][%cal Oc3d5]} Qd8 {[%emt 0:08:23]} 16. Rb1 {[%emt 0:00:34]} f5 {[%emt 0:05:35]} 17. Nf4 {[%emt 0:01:31]} Bd7 {[%emt 0:00:43]} 18. b4 {[%emt 0:00:43][%cal Bb3b4,Bb4b5,Bb5c6][%mdl 32]} Nxe4 {[%emt 0:00:36]} 19. Nxe4 {[%emt 0:00:06]} fxe4 {[%emt 0:00:04]} 20. Bxe4 {[%emt 0:00:24]} Qc8 {[%emt 0:05:47]} 21. Be3 {[%emt 0:03:51]} Bxh3 {[%emt 0:15:24]} 22. Nxh3 {[%emt 0:02:46]} Qxh3 {[%emt 0:01:19]} 23. b5 {[%emt 0:00:11]} Nd8 {[%emt 0:10:58]} 24. Qd5+ {[%emt 0:03:01][%mdl 1024] White has strong compensation.} Kh8 {[%emt 0:00:34]} 25. c5 {[%emt 0:02:45]} Be5 {[%emt 0:01:30]} (25... dxc5 $16 {was worth a try.} 26. Bxc5 (26. Qxc5 Ne6 $11) 26... Ne6) 26. Bg2 $18 {[%emt 0:00:23] Active counter play!} Qg4 {[%emt 0:06:23]} 27. c6 {[%emt 0:00:57]} ({White should try} 27. cxd6 exd6 28. Rbc1) 27... bxc6 $16 {[%emt 0:00:09]} 28. bxc6 $40 {[%emt 0:00:06][%mdl 128] White attacks with force.} Rc8 {[%emt 0:01:51]} (28... e6 $142 29. Qa5 d5) 29. Rfc1 {[%emt 0:07:02]} e6 {[%emt 0:01:39]} 30. Qd3 {[%emt 0:05:46]} d5 {[%emt 0:00:58] [#]} 31. f4 $2 {[%emt 0:00:14][%mdl 8192]} (31. c7 $1 $16 {[%cal Rc7d8]} Bxc7 32. Qa6) 31... Nxc6 {[%emt 0:03:26][%mdl 8192]} (31... Qxg3 $17 {and life is bright.} 32. Rd1 Bg7) 32. fxe5 {[%emt 0:01:43]} (32. Bc5 $142 Bxf4 33. Bxf8 (33. gxf4 Rxf4 34. Qa6 e5 $16) 33... Bxc1 34. Rxc1 Rxf8 35. Rxc6) 32... Qxg3 {[%emt 0:00:41][%cal Of8f2]} 33. Qe2 {[%emt 0:00:34] Prevents Rf2.} Qxe5 {[%emt 0:01:28][%cal Od5d4]} (33... Nxe5 $2 34. Rxc8 Nf3+ 35. Qxf3 $18) 34. Qb2 {[%emt 0:00:09] Hoping for Qxe5+. The board is on fire.} d4 $2 {[%emt 0:03:11]} (34... Kg8 $16 35. Qxe5 Nxe5) 35. Bf2 {[%emt 0:00:04] A strong pair of Bishops.} Qg5 {[%emt 0:01:53]} 36. Kf1 $4 {[%emt 0:01:34][%mdl 8192]} ({Less strong is} 36. Bxd4+ Nxd4 37. Qxd4+ e5 38. Rxc8 Rxc8 $14) (36. Qb3 $18) 36... Rb8 $19 {[%emt 0:01:25]} 37. Qe2 {[%emt 0:09:01]} Rxb1 $2 {[%emt 0:00:32]} ({But not} 37... Ne5 $2 38. Kg1 d3 39. Be3 Rxb1 40. Rxb1 $19) (37... d3 $19 {has better winning chances.} 38. Qxd3 Ne5) 38. Rxb1 $17 {[%emt 0:00:02]} Ne5 {[%emt 0:00:29]} 39. Bh3 {[%emt 0:03:02][%mdl 8192] Against Ng4} (39. Kg1 $1 $15 Nf3+ 40. Kf1) 39... Qf4 $2 {[%emt 0:00:26]} (39... d3 $19 40. Qe4 d2) 40. Kg2 $1 $11 {[%emt 0:00:53] aiming for Bg3.} Nf3 {[%emt 0:00:40] ( -> ...Qh2+)} 41. Bg3 {[%emt 0:02:30] Against Qh2+} Nh4+ $1 {[%emt 0:00:29]} 42. Bxh4 {[%emt 0:00:07]} Qxh4 {[%emt 0:00:03]} 43. Qe5+ {[%emt 0:01:28]} Qf6 {[%emt 0:00:02]} 44. Qxf6+ {[%emt 0:00:22]} Rxf6 $14 {[%emt 0:00:01][%mdl 4096] Endgame KRB-KR} 45. Rb8+ {[%emt 0:00:17]} Kg7 {[%emt 0:00:04]} 46. Ra8 {[%emt 0:00:02]} e5 {[%emt 0:01:59]} 47. Rxa7+ {[%emt 0:00:05]} Rf7 {[%emt 0:00:19]} 48. Ra5 {[%emt 0:00:39]} Re7 {[%emt 0:00:15]} 49. a4 {[%emt 0:00:30] And now Rd5 would win.} Kf6 $1 {[%emt 0:01:19]} 50. Rd5 {[%emt 0:01:21] Threatens to win with Bd7.} Rc7 {[%emt 0:00:21]} 51. a5 {[%emt 0:51:30]} Rc2+ {[%emt 0:00:21]} 52. Kg1 {[%emt 0:00:00]} Ra2 {[%emt 0:00:15]} 53. Bf1 {[%emt 0:00:00]} Kf5 {[%emt 0:00:44]} 54. a6 {[%emt 0:00:00]} Kf4 {[%emt 0:00:11]} 55. Rd7 {[%emt 0:00:00] Strongly threatening Bc4.} h5 $2 {[%emt 0:00:50] [#]} (55... Ke3 $11) 56. a7 {[%emt 0:00:00]} (56. Bb5 $1 $18) 56... g5 $2 {[%emt 0:00:29][%mdl 8192]} (56... Kg3 $14) 57. Bc4 $18 {[%emt 0:00:00]} Ra1+ {[%emt 0:00:32]} 58. Kf2 {[%emt 0:00:00]} (58. Kg2 $142 {Black must now prevent Bd5.} Ke3 59. Bd5) 58... e4 {[%emt 0:00:31]} 59. Bd5 {[%emt 0:00:00] White mates.} e3+ {[%emt 0:00:42]} 60. Ke2 {[%emt 0:00:00]} d3+ {[%emt 0:00:29]} 61. Kxd3 {[%emt 0:00:00]} Rd1+ {[%emt 0:00:18]} 62. Ke2 {[%emt 0:00:00]} Rd2+ {[%emt 0:00:04]} 63. Ke1 {[%emt 0:00:00]} g4 {[%emt 0:00:24]} 64. a8=Q {[%emt 0:00:00]} Kg3 {[%emt 0:00:03]} 65. Qa3 {[%emt 0:00:00]} Kh2 {[%emt 0:00:10]} 66. Qxe3 {[%emt 0:00:00]} Rb2 {[%emt 0:00:05]} 67. Qe5+ {[%emt 0:00:00]} g3 {[%emt 0:00:03]} 68. Qxh5+ {[%emt 0:00:00]} Kg1 {[%emt 0:00:01]} 69. Qh1# {[%emt 0:00:00] Weighted Error Value: White=0.67/Black=0.64} 1-0